bitfinex-derivatives/quotes_BTCF0:USTF0_20260111
["timestamp","ask_amount","ask_price","bid_price","bid_amount"]
[1768122667951,0.09004448,90870.0,90859.0,0.01102]
[1768122668153,0.09004448,90870.0,90860.0,0.01102]
[1768122668459,0.09004448,90870.0,90852.0,0.011021]
[1768122669160,0.09004448,90870.0,90861.0,0.01102]
[1768122670160,0.09004448,90870.0,90852.0,0.011021]
[1768122670656,0.09004448,90870.0,90850.0,0.24177425]
[1768122671057,0.09004448,90870.0,90860.0,0.01102]
[1768122674662,0.09004448,90870.0,90850.0,0.24177425]
[1768122675560,0.09004448,90870.0,90851.0,0.09029247]
[1768122675756,0.09004448,90870.0,90853.0,0.011021]
[1768122675960,0.09004448,90870.0,90852.0,0.104701]
[1768122676462,0.09004448,90870.0,90858.0,0.01102]
[1768122676758,0.09004448,90870.0,90860.0,0.01102]
[1768122676962,0.09004448,90870.0,90857.0,0.01102]
[1768122677163,0.09004448,90870.0,90852.0,0.09368]
[1768122677558,0.09004448,90870.0,90861.0,0.01102]
[1768122678058,0.09321814,90869.0,90860.0,0.01102]
[1768122680064,0.09321814,90869.0,90858.0,0.01102]
[1768122681569,0.09321814,90869.0,90860.0,0.01102]
[1768122681768,0.09321814,90869.0,90852.0,0.0827]
[1768122683568,0.09321814,90869.0,90859.0,0.01102]
[1768122683775,0.09321814,90869.0,90860.0,0.01102]
[1768122683961,0.09321814,90869.0,90861.0,0.01102]
[1768122685571,0.09321814,90869.0,90863.0,0.011019]
[1768122688172,0.09321814,90869.0,90861.0,0.01102]
[1768122688872,0.09321814,90869.0,90852.0,0.08074]
[1768122689278,0.09321814,90872.0,90864.0,0.011019]
[1768122690270,0.09321814,90872.0,90852.0,0.17103247]
[1768122691174,0.09321814,90872.0,90863.0,0.011019]
[1768122695777,0.09321814,90872.0,90864.0,0.011019]
[1768122696081,0.09321814,90872.0,90863.0,0.011019]
[1768122697277,0.09904395,90871.0,90852.0,0.17103247]
[1768122698283,0.09904395,90871.0,90862.0,0.01102]
[1768122698782,0.09904395,90871.0,90852.0,0.17103247]
[1768122698783,0.09904395,90871.0,90863.0,0.011019]
[1768122702988,0.09904395,90871.0,90854.0,0.010039]
[1768122703189,0.09904395,90871.0,90863.0,0.011019]
[1768122704576,0.18918135,90871.0,90863.0,0.011019]
[1768122704780,0.09904395,90870.0,90863.0,0.011019]
[1768122706790,0.09904395,90870.0,90861.0,0.01102]
[1768122708994,0.09904395,90870.0,90854.0,0.010039]
[1768122710096,0.09904395,90870.0,90861.0,0.01102]
[1768122711397,0.09904395,90870.0,90862.0,0.011019]
[1768122712198,0.09904395,90870.0,90863.0,0.011019]
[1768122712900,0.09904395,90870.0,90854.0,0.01102]
[1768122713801,0.09904395,90870.0,90862.0,0.011019]
[1768122715190,0.09904395,90870.0,90859.0,0.01102]
[1768122715397,0.09904395,90869.0,90861.0,0.01102]
[1768122715597,0.09904395,90869.0,90859.0,0.01102]
[1768122717205,0.09904395,90869.0,90852.0,0.053799]
[1768122718205,0.09904395,90869.0,90859.0,0.01102]
[1768122721708,0.09904395,90869.0,90858.0,0.01102]
[1768122722706,0.09904395,90869.0,90859.0,0.01102]
[1768122722907,0.09904395,90869.0,90860.0,0.01102]
[1768122723309,0.18918135,90869.0,90860.0,0.01102]
[1768122723507,0.09904395,90868.0,90860.0,0.01102]
[1768122724506,0.0992787,90866.0,90856.0,0.01102]
[1768122724707,0.0992787,90864.0,90852.0,0.046819]
[1768122725906,0.0992787,90864.0,90853.0,0.01102]
[1768122726412,0.0992787,90861.0,90852.0,0.01418316]
[1768122726606,0.0992787,90861.0,90851.0,0.011021]
[1768122726808,0.0992787,90861.0,90852.0,0.011021]
[1768122731006,0.0992787,90861.0,90848.0,0.09368]
[1768122731409,0.19356248,90860.0,90853.0,0.01102]
[1768122732806,0.09556375,90859.0,90853.0,0.01102]
[1768122733107,0.09556375,90857.0,90851.0,0.011021]
[1768122733308,0.19356248,90857.0,90852.0,0.011021]
[1768122734115,0.19356248,90857.0,90853.0,0.01102]
[1768122736314,0.011019,90866.0,90845.0,0.011022]
[1768122736315,0.09799873,90855.0,90845.0,0.011022]
[1768122736609,0.09799873,90855.0,90841.0,0.081702]
[1768122737315,0.10901873,90855.0,90844.0,0.011022]
[1768122737614,0.10901873,90855.0,90842.0,0.011022]
[1768122738218,0.01251723,90853.0,90844.0,0.011022]
[1768122739229,0.01251723,90853.0,90841.0,0.081702]
[1768122740316,0.01251723,90853.0,90844.0,0.011022]
[1768122744621,0.01251723,90853.0,90845.0,0.011021]
[1768122745616,0.01251723,90853.0,90841.0,0.081702]
[1768122746323,0.09799873,90854.0,90848.0,0.011021]
[1768122747323,0.09799873,90854.0,90849.0,0.011021]
[1768122750127,0.09799873,90854.0,90842.0,0.011022]
[1768122751027,0.09799873,90854.0,90849.0,0.011021]
[1768122752418,0.09799873,90854.0,90841.0,0.081702]
[1768122754528,0.09799873,90854.0,90848.0,0.011021]
[1768122756130,0.09799873,90854.0,90849.0,0.011021]
[1768122762833,0.09799873,90854.0,90847.0,0.011021]
[1768122765235,0.09799873,90854.0,90848.0,0.011021]
[1768122768339,0.09799873,90854.0,90841.0,0.081702]
[1768122768640,0.09799873,90854.0,90848.0,0.011021]
[1768122772942,0.10897491,90854.0,90848.0,0.011021]
[1768122773137,0.10897491,90854.0,90847.0,0.011021]
[1768122774542,0.10897491,90854.0,90841.0,0.081702]
[1768122776146,0.10897491,90854.0,90847.0,0.011021]
[1768122780152,0.00933447,90852.0,90847.0,0.011021]
[1768122780451,0.09678216,90851.0,90847.0,0.011021]
[1768122780646,0.09678216,90851.0,90838.0,0.09368]
[1768122780852,0.09678216,90851.0,90840.0,0.15148298]
[1768122781448,0.00933975,90850.0,90838.0,0.09368]
[1768122782353,0.00933975,90850.0,90840.0,0.15148298]
[1768122783047,0.00933975,90850.0,90838.0,0.09368]
[1768122783348,0.00933975,90850.0,90843.0,0.011022]
[1768122783748,0.09678216,90851.0,90844.0,0.011022]
[1768122784549,0.09678216,90851.0,90845.0,0.011021]
[1768122785854,0.00958762,90854.0,90846.0,0.011021]
[1768122786058,0.10103058,90854.0,90846.0,0.011021]
[1768122787962,0.0131694,90853.0,90846.0,0.011021]
[1768122790755,0.09339178,90850.0,90843.0,0.011022]
[1768122794967,0.09339178,90850.0,90844.0,0.011022]
[1768122796772,0.09339178,90850.0,90845.0,0.011021]
[1768122798061,0.10678069,90853.0,90845.0,0.011021]
[1768122800069,0.10678069,90853.0,90846.0,0.011021]
[1768122803773,0.10678069,90853.0,90848.0,0.011021]
[1768122803974,0.10678069,90853.0,90838.0,0.09368]
[1768122804674,0.10678069,90853.0,90846.0,0.011021]
[1768122806574,6.9e-07,90853.0,90838.0,0.09368]
[1768122806765,0.09368,90857.0,90849.0,0.011021]
[1768122807273,0.09368,90857.0,90846.0,0.011021]
[1768122808872,0.0007064,90856.0,90846.0,0.011021]
[1768122810074,0.0007064,90856.0,90838.0,0.09368]
[1768122811178,0.0007064,90856.0,90845.0,0.011021]
[1768122814476,0.0007064,90856.0,90844.0,0.011022]
[1768122816983,0.01102,90855.0,90838.0,0.28219254]
[1768122818185,0.01102,90855.0,90841.0,0.011022]
[1768122819486,0.01102,90855.0,90842.0,0.011022]
[1768122820693,0.01102,90855.0,90843.0,0.011022]
[1768122822490,0.01102,90855.0,90841.0,0.011022]
[1768122823491,0.01102,90855.0,90842.0,0.011022]
[1768122824492,0.01102,90855.0,90843.0,0.011022]
[1768122824692,0.09368,90857.0,90845.0,0.011022]
[1768122831894,0.1047,90857.0,90845.0,0.011022]
[1768122832498,0.01102,90855.0,90842.0,0.011022]
[1768122832897,0.1047,90857.0,90843.0,0.011022]
[1768122833290,0.1047,90857.0,90844.0,0.011022]
[1768122833696,0.09455564,90856.0,90836.0,0.011023]
[1768122833894,0.011021,90851.0,90836.0,0.011023]
[1768122834195,0.011021,90849.0,90836.0,0.011023]
[1768122834393,0.011021,90849.0,90833.0,0.18851254]
[1768122835204,0.011021,90849.0,90836.0,0.011023]
[1768122835806,0.011021,90847.0,90833.0,0.19953554]
[1768122836300,0.011021,90847.0,90835.0,0.011023]
[1768122838707,0.011021,90847.0,90833.0,0.10514743]
[1768122840504,0.011021,90847.0,90834.0,0.011023]
[1768122843016,0.09455564,90853.0,90833.0,0.011023]
[1768122845126,0.011021,90848.0,90833.0,0.011023]
[1768122846222,0.011021,90848.0,90834.0,0.011023]
[1768122846621,0.00342409,90843.0,90828.0,0.00221217]
[1768122846923,0.09368,90842.0,90828.0,0.00221217]
[1768122847224,0.011022,90840.0,90828.0,0.00221217]
[1768122847420,0.011022,90839.0,90828.0,0.00221217]
[1768122847621,0.011022,90841.0,90828.0,0.00221217]
[1768122848423,0.104702,90842.0,90828.0,0.00221217]
[1768122848627,0.104702,90842.0,90828.0,0.19432856]
[1768122848826,0.104702,90842.0,90828.0,0.18432856]
[1768122849919,0.09368,90842.0,90825.0,0.00550512]
[1768122851116,0.011022,90839.0,90825.0,0.00550512]
[1768122852337,0.011023,90837.0,90825.0,0.00550512]
[1768122857331,0.12501846,90842.0,90826.0,0.011024]
[1768122857829,0.12501846,90842.0,90825.0,0.00550512]
[1768122858532,0.12501846,90842.0,90825.0,0.01652912]
[1768122858933,0.12501846,90842.0,90826.0,0.011024]
[1768122859234,0.03080861,90841.0,90828.0,0.011024]
[1768122861536,0.03080861,90841.0,90821.0,0.19211639]
[1768122861730,0.04511819,90839.0,90827.0,0.011024]
[1768122862036,0.04511819,90837.0,90827.0,0.011024]
[1768122862629,0.00011727,90836.0,90827.0,0.011024]
[1768122863324,0.04523728,90836.0,90827.0,0.011024]
[1768122863931,0.00011727,90836.0,90827.0,0.011024]
[1768122864130,0.00011727,90836.0,90829.0,0.011023]
[1768122865735,0.00011727,90836.0,90824.0,0.011024]
[1768122865930,0.00011727,90836.0,90823.0,0.011024]
[1768122866732,0.00011727,90836.0,90831.0,0.011023]
[1768122868033,0.00011727,90836.0,90828.0,0.011024]
[1768122868642,0.00011727,90836.0,90822.0,0.19211639]
[1768122868643,0.00011727,90836.0,90822.0,0.17514039]
[1768122868939,0.00011727,90836.0,90823.0,0.09217426]
[1768122869237,0.00011727,90836.0,90828.0,0.011024]
[1768122869732,0.00011727,90836.0,90810.0,0.15155036]
[1768122869733,0.00011727,90836.0,90826.0,0.011024]
[1768122869939,0.00011727,90836.0,90812.0,0.011026]
[1768122869940,0.07273339,90827.0,90812.0,0.011026]
[1768122870126,0.15155036,90824.0,90812.0,0.011026]
[1768122870325,0.15155036,90824.0,90810.0,0.011026]
[1768122870641,0.15155036,90820.0,90811.0,0.011026]
[1768122870944,0.15155036,90820.0,90808.0,0.011026]
[1768122871331,0.15155036,90820.0,90809.0,0.011026]
[1768122872540,0.15155036,90820.0,90811.0,0.011026]
[1768122873443,0.15538939,90826.0,90811.0,0.011026]
[1768122873743,0.15538939,90826.0,90813.0,0.011025]
[1768122875640,0.15538939,90826.0,90807.0,0.09217426]
[1768122875844,0.15538939,90826.0,90812.0,0.011026]
[1768122876545,0.15538939,90826.0,90813.0,0.011025]
[1768122877743,0.06254256,90822.0,90801.0,0.18731581]
[1768122877943,0.06254256,90819.0,90801.0,0.09262079]
[1768122878345,0.06254256,90819.0,90805.0,0.011026]
[1768122879043,0.06254256,90819.0,90807.0,0.011026]
[1768122879636,0.06254256,90819.0,90812.0,0.011025]
[1768122879836,0.06255934,90824.0,90812.0,0.011025]
[1768122880440,0.06255934,90824.0,90813.0,0.011025]
[1768122881261,0.06255934,90824.0,90815.0,0.011025]
[1768122882357,0.06402792,90828.0,90817.0,0.011025]
[1768122882555,0.09372,90827.0,90818.0,0.33886617]
[1768122882850,0.09372,90827.0,90820.0,0.011025]
[1768122884249,0.09372,90827.0,90818.0,0.011025]
[1768122884451,0.07552358,90833.0,90813.0,0.09262079]
[1768122884744,0.00011727,90836.0,90803.0,0.011027]
[1768122884745,0.06450058,90829.0,90809.0,0.09469502]
[1768122885051,0.15910166,90829.0,90817.0,0.011025]
[1768122885246,0.06502245,90828.0,90817.0,0.011025]
[1768122885752,0.06502245,90828.0,90808.0,0.18731581]
[1768122886352,0.06502245,90828.0,90809.0,0.09469502]
[1768122886755,0.15155036,90820.0,90803.0,0.09469502]
[1768122886949,0.15155036,90820.0,90810.0,0.011026]
[1768122887454,0.15155036,90820.0,90805.0,0.011026]
[1768122888246,0.011025,90816.0,90802.0,0.18634079]
[1768122888460,0.011025,90816.0,90803.0,0.011027]
[1768122893152,0.011025,90816.0,90804.0,0.011026]
[1768122893355,0.011025,90819.0,90802.0,0.18731581]
[1768122893555,0.011025,90819.0,90805.0,0.011026]
[1768122894449,0.011025,90819.0,90807.0,0.011026]
[1768122895254,0.15155036,90820.0,90807.0,0.011026]
[1768122895755,0.15155036,90820.0,90808.0,0.011026]
[1768122896355,0.15155036,90820.0,90811.0,0.011026]
[1768122897864,0.15155036,90820.0,90802.0,0.18336881]
[1768122898260,0.15155036,90820.0,90812.0,0.011025]
[1768122898952,0.15155036,90820.0,90813.0,0.011025]
[1768122899356,0.15155036,90820.0,90811.0,0.011026]
[1768122900366,0.09372,90821.0,90811.0,0.011026]
[1768122900568,0.24527036,90821.0,90811.0,0.011026]
[1768122902069,0.24527036,90821.0,90802.0,0.17234181]
[1768122902368,0.15155036,90820.0,90812.0,0.011025]
[1768122902862,0.2156843,90830.0,90809.0,0.18731581]
[1768122903068,0.09372,90829.0,90813.0,0.09262079]
[1768122903267,0.09372,90829.0,90814.0,0.09469502]
[1768122903462,0.09372,90829.0,90821.0,0.011024]
[1768122903860,0.47884,90835.0,90811.0,0.011026]
[1768122903861,0.011022,90838.0,90825.0,0.011024]
[1768122904065,0.09372,90835.0,90823.0,0.09401051]
[1768122904271,0.09372,90835.0,90823.0,0.18596933]
[1768122904562,0.06414816,90843.0,90835.0,0.011023]
[1768122904770,0.09372,90842.0,90826.0,0.011024]
[1768122905075,0.06414816,90843.0,90832.0,0.011023]
[1768122905367,0.09372,90842.0,90832.0,0.011023]
[1768122906570,0.09372,90842.0,90831.0,0.011023]
[1768122907769,0.15826604,90842.0,90831.0,0.011023]
[1768122909265,0.15826604,90842.0,90830.0,0.15155036]
[1768122909572,0.09372,90841.0,90830.0,0.15155036]
[1768122910266,0.104742,90841.0,90830.0,0.15155036]
[1768122910569,0.104742,90841.0,90825.0,0.011024]
[1768122911668,0.09372,90841.0,90825.0,0.011024]
[1768122912172,0.011022,90839.0,90825.0,0.011024]
[1768122912972,0.09372,90841.0,90825.0,0.011024]
[1768122914164,0.09372,90841.0,90824.0,0.09195882]
[1768122914367,0.07422154,90835.0,90819.0,0.011025]
[1768122914659,0.07422154,90835.0,90817.0,0.09122033]
[1768122914660,0.06319854,90834.0,90820.0,0.15155036]
[1768122914871,0.06319854,90834.0,90821.0,0.011024]
[1768122915372,0.06319854,90834.0,90823.0,0.011024]
[1768122915574,0.06319854,90834.0,90820.0,0.16257536]
[1768122916375,0.06319854,90834.0,90822.0,0.011024]
[1768122917578,0.06319854,90834.0,90820.0,0.15155036]
[1768122918380,0.06319854,90834.0,90821.0,0.011024]
[1768122918570,0.07422154,90834.0,90821.0,0.011024]
[1768122921683,0.06293594,90831.0,90819.0,0.011025]
[1768122922276,0.06293594,90831.0,90817.0,0.011025]
[1768122922476,0.06293594,90831.0,90814.0,0.011025]
[1768122922681,0.07395994,90829.0,90816.0,0.011025]
[1768122925491,0.06293594,90829.0,90819.0,0.011025]
[1768122928278,0.06293594,90829.0,90820.0,0.011024]
[1768122929391,0.06293594,90829.0,90823.0,0.011024]
[1768122930092,0.06293594,90829.0,90820.0,0.011025]
[1768122930699,0.06293594,90829.0,90822.0,0.011024]
[1768122935502,0.06293594,90829.0,90823.0,0.011024]
[1768122936700,0.06293594,90829.0,90824.0,0.011024]
[1768122937000,0.09377635,90831.0,90825.0,0.011024]
[1768122937704,0.15384789,90836.0,90826.0,0.011024]
[1768122938404,0.19989991,90841.0,90822.0,0.1963057]
[1768122938595,0.19989991,90841.0,90823.0,0.09907284]
[1768122938793,0.09372,90841.0,90834.0,0.011023]
[1768122939389,0.09372,90841.0,90826.0,0.011024]
[1768122939593,0.09372,90841.0,90835.0,0.011023]
[1768122940104,0.3458067,90844.0,90835.0,0.011023]
[1768122940402,0.3458067,90844.0,90823.0,0.09907284]
[1768122940403,0.09368,90843.0,90832.0,0.011023]
[1768122940903,0.09368,90843.0,90833.0,0.011023]
[1768122942005,0.09368,90843.0,90824.0,0.011024]
[1768122942006,0.09368,90843.0,90825.0,0.09907284]
[1768122942209,0.09368,90843.0,90833.0,0.011023]
[1768122942706,0.09368,90843.0,90831.0,0.011023]
[1768122944795,0.15256975,90843.0,90831.0,0.011023]
[1768122945201,0.15256975,90843.0,90832.0,0.011023]
[1768122945400,0.09368,90843.0,90832.0,0.011023]
[1768122945705,0.011022,90842.0,90825.0,0.09907284]
[1768122945902,0.09368,90843.0,90830.0,0.011023]
[1768122946409,0.15256122,90843.0,90831.0,0.011023]
[1768122949109,0.15256122,90843.0,90824.0,0.08625586]
[1768122950211,0.15256122,90843.0,90831.0,0.011023]
[1768122952512,0.05898716,90842.0,90831.0,0.011023]
[1768122953608,0.05898716,90842.0,90832.0,0.011023]
[1768122956308,0.05898716,90842.0,90824.0,0.08625586]
[1768122957215,0.05898716,90842.0,90832.0,0.011023]
[1768122957913,0.05898716,90842.0,90833.0,0.011023]
[1768122959614,0.05898716,90842.0,90825.0,0.011024]
[1768122960406,0.05898716,90842.0,90831.0,0.011023]
[1768122960807,0.011022,90841.0,90824.0,0.08625586]
[1768122961016,0.05898716,90842.0,90824.0,0.08625586]
[1768122961619,0.05898716,90842.0,90833.0,0.011023]
[1768122962318,0.05898716,90842.0,90831.0,0.011023]
[1768122962522,0.05898716,90842.0,90833.0,0.011023]
[1768122962715,0.011021,90851.0,90839.0,0.011022]
[1768122962918,0.09368,90856.0,90843.0,0.011022]
[1768122963118,0.15279629,90856.0,90845.0,0.011022]
[1768122963415,0.15279629,90856.0,90836.0,0.011023]
[1768122963622,0.15279629,90856.0,90847.0,0.011021]
[1768122963822,0.15279629,90856.0,90834.0,0.09382428]
[1768122964721,0.01102,90855.0,90834.0,0.09382428]
[1768122965312,0.15279629,90856.0,90843.0,0.011022]
[1768122966213,0.07813125,90855.0,90843.0,0.011022]
[1768122966420,0.07813125,90852.0,90841.0,0.011022]
[1768122966618,0.07813125,90850.0,90831.0,0.10672783]
[1768122967319,0.07813125,90850.0,90841.0,0.011022]
[1768122967919,0.07813125,90850.0,90831.0,0.09570483]
[1768122969224,0.07813125,90850.0,90839.0,0.011022]
[1768122970431,0.07813125,90850.0,90831.0,0.09272683]
[1768122971125,0.07813125,90850.0,90839.0,0.011022]
[1768122972328,0.08915225,90850.0,90837.0,0.011022]
[1768122972630,0.07813125,90850.0,90839.0,0.011022]
[1768122975727,0.09900981,90851.0,90841.0,0.011022]
[1768122977431,0.09900981,90851.0,90842.0,0.011022]
[1768122977626,0.09900981,90851.0,90832.0,0.08095202]
[1768122978030,0.09900981,90851.0,90842.0,0.011022]
[1768122978834,0.09900981,90851.0,90833.0,0.011023]
[1768122978835,0.09900981,90851.0,90843.0,0.011022]
[1768122979937,0.18911753,90851.0,90843.0,0.011022]
[1768122980432,0.18378772,90856.0,90844.0,0.011022]
[1768122980626,0.01102,90855.0,90840.0,0.15150475]
[1768122980824,0.10112772,90855.0,90840.0,0.15150475]
[1768122981024,0.09010772,90854.0,90842.0,0.011022]
[1768122981735,0.10112872,90854.0,90842.0,0.011022]
[1768122982036,0.09010772,90854.0,90842.0,0.011022]
[1768122982730,0.09010772,90853.0,90842.0,0.011022]
[1768122984233,0.09010772,90853.0,90841.0,0.011022]
[1768122984628,0.09010772,90853.0,90840.0,0.13752675]
[1768122984828,0.09010772,90853.0,90832.0,0.19089424]
[1768122985036,0.09010772,90853.0,90841.0,0.011022]
[1768122986128,0.09010772,90852.0,90841.0,0.011022]
[1768122987425,0.09010772,90852.0,90840.0,0.15150475]
[1768122987630,0.09010772,90852.0,90840.0,0.16252675]
[1768122987831,0.09010772,90852.0,90841.0,0.011022]
[1768122989430,0.09010772,90851.0,90841.0,0.011022]
[1768122991840,0.09010772,90851.0,90840.0,0.12952675]
[1768122992229,0.09010772,90851.0,90841.0,0.011022]
[1768122992429,0.09010772,90851.0,90842.0,0.011022]
[1768122992629,0.09010772,90851.0,90843.0,0.011022]
[1768122993035,0.09010772,90851.0,90840.0,0.12952675]
[1768122993036,0.09010772,90851.0,90840.0,0.16252675]
[1768122993740,0.09010772,90851.0,90842.0,0.011022]
[1768122995041,0.09010772,90851.0,90840.0,0.15150475]
[1768122995341,0.09010772,90851.0,90841.0,0.011022]
[1768122997744,0.09010772,90851.0,90840.0,0.15150475]
[1768122998144,0.09010772,90851.0,90840.0,0.16252675]
[1768122998844,0.09010772,90851.0,90841.0,0.011022]
[1768122999247,0.09010772,90851.0,90840.0,0.13452675]
[1768122999448,0.09010772,90851.0,90840.0,0.15150475]
[1768123001645,0.09010772,90851.0,90840.0,0.16252675]
[1768123001853,0.09010772,90851.0,90840.0,0.15150475]
[1768123003046,0.09010772,90851.0,90842.0,0.011022]
[1768123005447,0.09010772,90851.0,90841.0,0.011022]
[1768123006348,0.09010772,90851.0,90840.0,0.12852675]
[1768123007142,0.09010772,90851.0,90832.0,0.19089424]
[1768123007348,0.0909546,90848.0,90831.0,0.09368]
[1768123007549,0.0909546,90848.0,90831.0,0.104703]
[1768123007942,0.0909546,90848.0,90838.0,0.011022]
[1768123008341,0.0909546,90848.0,90836.0,0.011023]
[1768123008540,0.0909546,90848.0,90837.0,0.011022]
[1768123008745,0.0909546,90847.0,90833.0,0.011023]
[1768123008944,0.0909546,90847.0,90831.0,0.104703]
[1768123008945,0.011022,90844.0,90831.0,0.104703]
[1768123012445,0.0909546,90847.0,90831.0,0.09368]
[1768123013357,0.0909546,90847.0,90831.0,0.05368]
[1768123015255,0.011022,90845.0,90831.0,0.064703]
[1768123016656,0.011022,90845.0,90831.0,0.011023]
[1768123018057,0.011022,90843.0,90831.0,0.011023]
[1768123018451,0.011022,90845.0,90830.0,0.15150475]
[1768123018652,0.09042748,90857.0,90837.0,0.09979314]
[1768123018859,0.1047,90856.0,90841.0,0.011022]
[1768123019058,0.1847,90856.0,90841.0,0.011022]
[1768123019353,0.011021,90854.0,90840.0,0.15150475]
[1768123019757,0.011021,90854.0,90841.0,0.011022]
[1768123020459,0.011021,90854.0,90838.0,0.09493426]
[1768123020661,0.011021,90854.0,90840.0,0.15150475]
[1768123021158,0.011021,90854.0,90841.0,0.011022]
[1768123023055,0.011021,90853.0,90840.0,0.16252675]
[1768123024365,0.104701,90853.0,90840.0,0.16252675]
[1768123024663,0.09368,90853.0,90836.0,0.09979314]
[1768123024963,0.08824146,90848.0,90836.0,0.011023]
[1768123025461,0.08824146,90848.0,90837.0,0.011022]
[1768123026359,0.011021,90847.0,90835.0,0.011023]
[1768123026561,0.08824146,90848.0,90835.0,0.011023]
[1768123027267,0.08787866,90846.0,90828.0,0.18951979]
[1768123027466,0.08787866,90845.0,90830.0,0.15150475]
[1768123028165,0.011022,90842.0,90830.0,0.15150475]
[1768123028857,0.011022,90842.0,90830.0,0.12050475]
[1768123029060,0.011022,90840.0,90828.0,0.09368]
[1768123029569,0.18724853,90837.0,90821.0,0.09368]
[1768123029867,0.011023,90832.0,90820.0,0.15150475]
[1768123030770,0.08774735,90834.0,90820.0,0.16252875]
[1768123031768,0.08714652,90838.0,90820.0,0.15150475]
[1768123032068,0.2803277,90841.0,90828.0,0.011024]
[1768123032761,0.19318118,90841.0,90830.0,0.011023]
[1768123033062,0.104702,90841.0,90825.0,0.09496431]
[1768123034268,0.104702,90841.0,90826.0,0.011024]
[1768123036171,0.104702,90841.0,90828.0,0.011024]
[1768123040771,0.104702,90841.0,90824.0,0.07389817]
[1768123041171,0.09368,90841.0,90828.0,0.011024]
[1768123041768,0.104702,90841.0,90828.0,0.011024]
[1768123043263,0.09368,90852.0,90835.0,0.09496431]
[1768123043465,0.09546847,90851.0,90832.0,0.09496431]
[1768123043662,0.09546847,90851.0,90830.0,0.09387417]
[1768123043868,0.09546847,90850.0,90834.0,0.011023]
[1768123044175,0.011021,90849.0,90834.0,0.011023]
[1768123047885,0.011021,90849.0,90830.0,0.18883848]
[1768123047886,0.011021,90849.0,90830.0,0.16886148]
[1768123048191,0.011021,90849.0,90834.0,0.011023]
[1768123048392,0.011021,90849.0,90835.0,0.011023]
[1768123049389,0.09546847,90850.0,90830.0,0.16886148]
[1768123049589,0.011021,90848.0,90832.0,0.011023]
[1768123050590,0.09546847,90850.0,90830.0,0.16886148]
[1768123050891,0.011021,90847.0,90833.0,0.011023]
[1768123055282,0.011021,90847.0,90830.0,0.15088448]
[1768123056194,0.011021,90847.0,90833.0,0.011023]
[1768123057088,0.011022,90846.0,90833.0,0.011023]
[1768123057288,0.0934208,90847.0,90829.0,0.011023]
[1768123057587,0.0947312,90846.0,90829.0,0.011023]
[1768123057995,0.199174,90845.0,90830.0,0.011023]
[1768123058493,0.199174,90845.0,90832.0,0.011023]
[1768123059194,0.0947312,90844.0,90832.0,0.011023]
[1768123059394,0.188152,90844.0,90832.0,0.011023]
[1768123060192,0.0934208,90840.0,90825.0,0.00550512]
[1768123060393,0.188152,90839.0,90827.0,0.011024]
[1768123061194,0.188152,90839.0,90825.0,0.00550512]
[1768123061195,0.188152,90839.0,90828.0,0.011024]
[1768123062196,0.188152,90839.0,90820.0,0.17606346]
[1768123062592,0.188152,90839.0,90826.0,0.011024]
[1768123064790,0.011022,90838.0,90826.0,0.011024]
[1768123068300,0.011023,90836.0,90823.0,0.011024]
[1768123068702,0.011023,90835.0,90823.0,0.011024]
[1768123069791,0.1057542,90835.0,90821.0,0.011024]
[1768123069997,0.0947312,90834.0,90821.0,0.011024]
[1768123070297,0.0947312,90834.0,90822.0,0.011024]
[1768123070493,0.1057542,90834.0,90820.0,0.104705]
[1768123070900,0.1057542,90834.0,90821.0,0.011024]
[1768123071597,0.0947312,90834.0,90821.0,0.011024]
[1768123072199,0.0947312,90834.0,90823.0,0.011024]
[1768123072500,0.0934208,90835.0,90823.0,0.011024]
[1768123073696,0.011023,90836.0,90823.0,0.011024]
[1768123075604,0.011023,90834.0,90820.0,0.104705]
[1768123076406,0.011023,90833.0,90820.0,0.104705]
[1768123081611,0.1057542,90835.0,90821.0,0.011024]
[1768123081809,0.1057542,90835.0,90822.0,0.011024]
[1768123082011,0.0947312,90838.0,90820.0,0.19053434]
[1768123082411,0.0947312,90838.0,90827.0,0.011024]
[1768123082708,0.1044428,90841.0,90827.0,0.011024]
[1768123083711,0.1044428,90841.0,90825.0,0.011024]
[1768123083712,0.011022,90839.0,90825.0,0.011024]
[1768123084416,0.011023,90838.0,90824.0,0.011024]
[1768123084716,0.011022,90840.0,90826.0,0.011024]
[1768123086119,0.011022,90840.0,90821.0,0.09262032]
[1768123086314,0.0934208,90841.0,90823.0,0.09262032]
[1768123087015,0.18991195,90841.0,90823.0,0.09262032]
[1768123087212,0.011022,90839.0,90823.0,0.09262032]
[1768123087418,0.011022,90840.0,90826.0,0.011024]
[1768123087917,0.011022,90840.0,90828.0,0.011024]
[1768123088713,0.011022,90840.0,90823.0,0.09262032]
[1768123089113,0.011022,90840.0,90827.0,0.011024]
[1768123090216,0.011022,90838.0,90823.0,0.07364432]
[1768123091122,0.011022,90838.0,90826.0,0.011024]
[1768123091817,0.20093395,90841.0,90826.0,0.011024]
[1768123092019,0.18991195,90841.0,90824.0,0.011024]
[1768123093117,0.011023,90838.0,90824.0,0.011024]
[1768123093322,0.011023,90838.0,90825.0,0.011024]
[1768123094425,0.011022,90840.0,90825.0,0.011024]
[1768123094727,0.18991195,90841.0,90823.0,0.07364432]
[1768123095224,0.011022,90840.0,90823.0,0.07364432]
[1768123096421,0.011022,90840.0,90824.0,0.09024067]
[1768123096726,0.011022,90841.0,90827.0,0.19196877]
[1768123097226,0.011022,90841.0,90827.0,0.15396877]
[1768123097527,0.104702,90844.0,90828.0,0.011024]
[1768123097725,0.09368,90844.0,90830.0,0.011023]
[1768123097926,0.09368,90844.0,90827.0,0.14294477]
[1768123098425,0.09368,90844.0,90833.0,0.011023]
[1768123099329,0.09368,90844.0,90827.0,0.09024067]
[1768123099525,0.011022,90843.0,90830.0,0.011023]
[1768123099728,0.09368,90844.0,90827.0,0.09024067]
[1768123099729,0.09368,90844.0,90831.0,0.011023]
[1768123100733,0.104702,90844.0,90831.0,0.011023]
[1768123102129,0.09957266,90842.0,90831.0,0.011023]
[1768123103431,0.09957266,90842.0,90832.0,0.011023]
[1768123103828,0.09957266,90842.0,90830.0,0.011023]
[1768123104431,0.09957266,90842.0,90823.0,0.0677511]
[1768123105132,0.09957266,90842.0,90823.0,0.0787751]